fUSD/lending_fUSD_20260126
["ID","MTS","AMOUNT","RATE_DAILY","PERIOD"]
[403628472,1769430641111,-300.0,0.00017423,2]
[403628473,1769430641120,-300.0,0.00017423,2]
[403628474,1769430641129,-300.0,0.00017423,2]
[403628475,1769430641138,-300.0,0.00017423,2]
[403628476,1769430641148,-300.0,0.00017423,2]
[403628477,1769430641157,-300.0,0.00017423,2]
[403628478,1769430641166,-300.0,0.00017423,2]
[403628479,1769430641176,-300.0,0.00017423,2]
[403628480,1769430641186,-300.0,0.00017423,2]
[403628481,1769430641195,-300.0,0.00017423,2]
[403628482,1769430641204,-300.0,0.00017423,2]
[403628483,1769430641213,-300.0,0.00017423,2]
[403628484,1769430641223,-300.0,0.00017423,2]
[403628485,1769430641232,-300.0,0.00017423,2]
[403628486,1769430641242,-300.0,0.00017423,2]
[403628487,1769430641251,-300.0,0.00017423,2]
[403628488,1769430641260,-157.78877931,0.00017423,2]
[403628489,1769430641269,-537.89662672,0.00017423,2]
[403628490,1769430641279,-295.81859598,0.00017423,2]
[403628491,1769430641288,-500.0,0.00017423,2]
[403628492,1769430641297,-500.0,0.00017423,2]
[403628493,1769430641306,-500.0,0.00017423,2]
[403628494,1769430641316,-280.13,0.00017423,2]
[403628495,1769430641325,-500.0,0.00017423,2]
[403628496,1769430641335,-500.0,0.00017423,2]
[403628497,1769430641344,-509.89335686,0.00017423,2]
[403628498,1769430641354,-500.0,0.00017423,2]
[403628499,1769430641363,-500.0,0.00017423,2]
[403628500,1769430641372,-589.81125043,0.00017423,2]
[403628501,1769430641382,-500.0,0.00017423,2]
[403628502,1769430641392,-150.0,0.00017423,2]
[403628503,1769430641401,-751.52,0.00017424,2]
[403628504,1769430641411,-751.52,0.00017424,2]
[403628505,1769430641420,-751.52,0.00017424,2]
[403628506,1769430641429,-751.52,0.00017424,2]
[403628507,1769430641438,-751.52,0.00017424,2]
[403628508,1769430641448,-751.52,0.00017424,2]
[403628509,1769430641458,-751.52,0.00017424,2]
[403628510,1769430641470,-751.52,0.00017424,2]
[403628511,1769430641480,-751.52,0.00017424,2]
[403628512,1769430641489,-751.52,0.00017424,2]
[403628513,1769430641498,-751.52,0.00017424,2]
[403628514,1769430641508,-1320.79,0.00017424,2]
[403628515,1769430641518,-1000.0,0.00017432,2]
[403628516,1769430641527,-1000.0,0.00017432,2]
[403628517,1769430641537,-1000.0,0.00017432,2]
[403628518,1769430641547,-1000.0,0.00017432,2]
[403628519,1769430641556,-1004.06696789,0.00017432,2]
[403628520,1769430641566,-1000.0,0.00017432,2]
[403628521,1769430641575,-1000.0,0.00017432,2]
[403628522,1769430641585,-207.78723917,0.00017432,2]
[403628523,1769430641595,-8399.85644771,0.00017463,2]
[403628524,1769430641606,-406.0,0.00017463,2]
[403628525,1769430641617,-150.0,0.00017463,2]
[403628526,1769430641627,-152.21,0.0001749,2]
[403628527,1769430641637,-152.21,0.0001749,2]
[403628528,1769430641647,-152.21,0.0001749,2]
[403628529,1769430641657,-151.0,0.00017497,2]
[403628530,1769430641667,-259273.59773769,0.000175,3]
[403628531,1769430641676,-558.94,0.00017507,2]
[403628532,1769430641685,-372.17,0.00017507,2]
[403628533,1769430641695,-2613.0,0.00017528,2]
[403628534,1769430641704,-1000.0,0.00017534,2]
[403628535,1769430641714,-873.26,0.00017534,2]
[403628536,1769430641724,-640.0,0.00017542,2]
[403628537,1769430641734,-406.0,0.00017553,2]
[403628538,1769430641744,-2439.18205259,0.00017566,2]
[403628539,1769430641753,-8399.85644771,0.00017572,2]
[403628540,1769430641762,-500.0,0.00017612,2]
[403628541,1769430641771,-2443.65189707,0.0001764,2]
[403628542,1769430641781,-406.0,0.00017642,2]
[403628543,1769430641791,-151.0,0.00017647,2]
[403628544,1769430641801,-181.08010149,0.00017647,2]
[403628545,1769430641811,-885.86649465,0.00017647,2]
[403628546,1769430641821,-373.07297731,0.00017647,2]
[403628547,1769430641831,-818.38874187,0.0001767,2]
[403628548,1769430641840,-1086.0,0.0001768,2]
[403628549,1769430641849,-837.0,0.0001768,2]
[403628550,1769430641859,-1086.0,0.0001768,2]
[403628551,1769430641868,-8399.85644771,0.00017681,2]
[403628552,1769430641877,-150.0,0.00017699,2]
[403628553,1769430641887,-150.0,0.00017699,2]
[403628554,1769430641896,-150.0,0.00017699,2]
[403628555,1769430641906,-500.0,0.00017699,2]
[403628556,1769430641916,-500.0,0.00017699,2]
[403628557,1769430641928,-1500.0,0.000177,2]
[403628558,1769430641938,-403.0,0.000177,5]
[403628559,1769430641948,-2613.0,0.00017705,2]
[403628560,1769430641958,-2613.0,0.0001771,2]
[403628561,1769430641968,-406.0,0.00017732,2]
[403628562,1769430641979,-2439.18205259,0.00017733,2]
[403628563,1769430641988,-150.0,0.00017754,2]
[403628564,1769430641997,-150.0,0.00017754,2]
[403628565,1769430642008,-150.0,0.00017754,2]
[403628566,1769430642018,-500.0,0.00017754,2]
[403628567,1769430642027,-500.0,0.00017754,2]
[403628568,1769430642038,-8399.85644771,0.00017791,2]
[403628569,1769430642047,-2613.0,0.00017792,2]
[403628570,1769430642057,-2670.0,0.000178,2]
[403628571,1769430642066,-500.0,0.00017808,2]
[403628572,1769430642076,-1000.0,0.00017808,2]
[403628573,1769430642328,-150.0,0.00017809,2]
[403628574,1769430642338,-150.0,0.00017809,2]
[403628575,1769430642348,-200.0,0.00017809,2]
[403628576,1769430642357,-500.0,0.00017809,2]
[403628577,1769430642367,-352.0,0.00017809,2]
[403628578,1769430642376,-406.0,0.00017821,2]
[403628579,1769430642385,-1518.455,0.0001783,2]
[403628580,1769430642395,-169.839,0.0001783,2]
[403628581,1769430642404,-200.0,0.00017855,2]
[403628582,1769430642414,-200.0,0.00017856,2]
[403628583,1769430642422,-500.0,0.00017863,2]
[403628584,1769430642432,-867.98,0.00017863,2]
[403628585,1769430642441,-223.82376987,0.00017863,2]
[403628586,1769430642450,-150.0,0.00017863,2]
[403628587,1769430642460,-500.0,0.00017863,2]
[403628588,1769430642470,-1999.71875408,0.00017873,2]
[403628589,1769430642480,-2613.0,0.00017888,2]
[403628590,1769430642489,-1000.0,0.000179,2]
[403628591,1769430642499,-10000.0,0.000179,2]
[403628592,1769430642508,-18194.85928529,0.000179,3]
[403628593,1769430642518,-191.58956318,0.000179,2]
[403628594,1769430642527,-2439.18205259,0.000179,2]
[403628595,1769430642536,-8399.85644771,0.000179,2]
[403628596,1769430642546,-9663.0,0.000179,2]
[403628597,1769430642555,-406.0,0.00017911,2]
[403628598,1769430642565,-500.0,0.00017918,2]
[403628599,1769430642575,-150.0,0.00017918,2]
[403628600,1769430642584,-500.0,0.00017918,2]
[403628601,1769430642594,-2613.0,0.00017919,2]
[403628602,1769430642603,-2613.0,0.00017926,2]
[403628603,1769430642613,-2613.0,0.00017928,2]
[403628604,1769430642622,-2613.0,0.0001794,2]
[403628605,1769430642631,-184.29,0.00017961,2]
[403628606,1769430642640,-2613.0,0.0001797,2]
[403628607,1769430642649,-500.0,0.00017972,2]
[403628608,1769430642658,-250.0,0.00017973,2]
[403628609,1769430642668,-500.0,0.00017973,2]
[403628610,1769430642678,-150.0,0.00017973,2]
[403628611,1769430642687,-150.0,0.00017973,2]
[403628612,1769430642696,-1500.0,0.0001798,2]
[403628613,1769430642705,-481.92469826,0.0001798,2]
[403628614,1769430642715,-1500.0,0.0001798,2]
[403628615,1769430642724,-1500.0,0.0001798,2]
[403628616,1769430642734,-1500.0,0.0001798,2]
[403628617,1769430642743,-497.10035814,0.0001798,2]
[403628618,1769430642753,-1000.0,0.00017982,2]
[403628619,1769430642761,-329365.86067035,0.0001799,3]
[403628620,1769430642771,-10369.21272646,0.0001799,2]
[403628629,1769430643248,-292.97700002,0.0001799,2]
[403628630,1769430643260,-1192.04853691,0.0001799,2]
[403628631,1769430643539,-1086.0,0.0001672,2]
[403628632,1769430643549,-1061.53026276,0.0001799,2]
[403628633,1769430643575,-1691.06524236,0.0001799,2]
[403628634,1769430643589,-281.55,0.0001799,2]
[403628635,1769430643600,-696.05560694,0.0001799,2]
[403628636,1769430643611,-574.0,0.0001799,2]
[403628637,1769430643622,-314.06540004,0.0001799,2]
[403628638,1769430643654,-3423.7833882,0.0001799,2]
[403628639,1769430643666,-3375.5170958,0.0001799,2]
[403628640,1769430643689,-5154.08648986,0.0001799,2]
[403628641,1769430643699,-150.0,0.0001799,2]
[403628642,1769430643709,-356.54749476,0.00017999,2]
[403628643,1769430643718,-407.48285116,0.00017999,2]
[403628644,1769430643727,-636.05526298,0.00017999,2]
[403628645,1769430643736,-290.41219346,0.00017999,2]
[403628646,1769430643745,-331.89964967,0.00017999,2]
[403628647,1769430643754,-518.07460941,0.00017999,2]
[403628648,1769430643763,-3507.60813029,0.00017999,2]
[403628649,1769430643774,-3076.73606805,0.00017999,2]
[403628650,1769430643785,-33329.90995989,0.00017999,2]
[403628651,1769430643804,-1426.31651909,0.00017999,2]
[403628652,1769430643823,-597.05296577,0.00017999,2]
[403628653,1769430643834,-18200.89889173,0.00017999,2]
[403628658,1769430644230,-2682.49681802,0.00016437,2]
[403628659,1769430644240,-880938.84717908,0.00017999,2]
[403628660,1769430644373,-2045.8040405,0.00017999,2]
[403628661,1769430644383,-300.0,0.00017999,2]
[403628662,1769430644392,-666.0,0.00017999,2]
[403628663,1769430644402,-5479.5943757,0.00017999,2]
[403628664,1769430644413,-300.0,0.00017999,2]
[403628665,1769430644422,-151.0,0.00017999,2]
[403628666,1769430644442,-151.0,0.00017999,2]
[403628667,1769430644454,-210.489007,0.00017999,2]
[403628668,1769430644463,-151.0,0.00017999,2]
[403628669,1769430644473,-151.0,0.00017999,2]
[403628670,1769430644482,-621.666714,0.00017999,2]
[403628671,1769430644493,-151.0,0.00017999,2]
[403628672,1769430644502,-151.0,0.00017999,2]
[403628673,1769430644512,-621.666714,0.00017999,2]
[403628674,1769430644522,-151.0,0.00017999,2]
[403628675,1769430644531,-621.666714,0.00017999,2]
[403628676,1769430644541,-245.167113,0.00017999,2]
[403628677,1769430644551,-621.666714,0.00017999,2]
[403628678,1769430644561,-151.0,0.00017999,2]
[403628679,1769430644570,-151.0,0.00017999,2]
[403628680,1769430644580,-151.0,0.00017999,2]
[403628681,1769430644590,-151.0,0.00017999,2]
[403628682,1769430644600,-151.0,0.00017999,2]
[403628683,1769430644610,-723.952333,0.00017999,2]
[403628684,1769430644619,-151.0,0.00017999,2]
[403628685,1769430644628,-151.0,0.00017999,2]
[403628686,1769430644638,-151.0,0.00017999,2]
[403628687,1769430644646,-151.0,0.00017999,2]
[403628688,1769430644655,-723.952333,0.00017999,2]
[403628689,1769430644665,-241.646103,0.00017999,2]
[403628690,1769430644673,-151.0,0.00017999,2]
[403628691,1769430644682,-151.0,0.00017999,2]
[403628692,1769430644692,-151.0,0.00017999,2]
[403628693,1769430644702,-723.952333,0.00017999,2]
[403628694,1769430644712,-183.698121,0.00017999,2]
[403628695,1769430644722,-151.0,0.00017999,2]
[403628696,1769430644731,-2294.775029,0.00017999,2]
[403628697,1769430644740,-151.0,0.00017999,2]
[403628698,1769430644749,-723.952333,0.00017999,2]
[403628699,1769430644759,-151.0,0.00017999,2]
[403628700,1769430644768,-2294.775029,0.00017999,2]
[403628701,1769430644778,-327050.1765303,0.00018,2]
[403628702,1769430644787,-577479.08382171,0.00018,2]
[403628703,1769430644797,-150.0,0.00018,7]
[403628704,1769430644806,-1000.0,0.00018,2]
[403628705,1769430644815,-1000.0,0.00018,2]
[403628706,1769430644824,-1000.0,0.00018,2]
[403628707,1769430644833,-1000.0,0.00018,2]
[403628708,1769430644842,-1000.0,0.00018,2]
[403628710,1769430644852,-1000.0,0.00018,2]
[403628711,1769430644861,-1000.0,0.00018,2]
[403628712,1769430644871,-1000.0,0.00018,2]
[403628713,1769430644880,-1000.0,0.00018,2]
[403628715,1769430644889,-1000.0,0.00018,2]
[403628717,1769430644899,-1000.0,0.00018,2]
[403628720,1769430644908,-1000.0,0.00018,2]
[403628722,1769430644917,-1000.0,0.00018,2]
[403628725,1769430644928,-1000.0,0.00018,2]
[403628727,1769430644939,-1000.0,0.00018,2]
[403628729,1769430644948,-1000.0,0.00018,2]
[403628731,1769430644957,-1000.0,0.00018,2]
[403628733,1769430644966,-1000.0,0.00018,2]
[403628735,1769430644977,-1000.0,0.00018,2]
[403628736,1769430644986,-483.56532775,0.00018,2]
[403628737,1769430644996,-2500.0,0.00018,2]
[403628738,1769430645006,-600.0,0.00018,2]
[403628739,1769430645016,-2434127.89940684,0.00018,2]
[403628740,1769430645076,-195643.62230471,0.00018,2]
[403628741,1769430645087,-8808.93369751,0.00018,2]
[403628742,1769430645103,-327.81498726,0.00018,2]
[403628743,1769430645114,-323.04750949,0.00018,2]
[403628744,1769430645693,-1086.0,0.0001704,2]
[403628745,1769430645702,-1452.63502573,0.00017111,2]
[403628746,1769430645711,-895.64133627,0.00017999,2]
[403628747,1769430646082,-1452.63502573,0.00017505,2]
[403628748,1769430646092,-1399.13369273,0.00017999,2]
[403628749,1769430646101,-1543.78413155,0.00017999,2]
[403628750,1769430646354,-750.99089745,0.00017999,2]
[403628751,1769430646363,-159.525,0.00017999,2]
[403628752,1769430646373,-159.525,0.00017999,2]
[403628753,1769430646382,-486257.45492093,0.00018,2]
[403628754,1769430646924,4499.0,0.000137,5]
[403628763,1769430752468,2067.83,0.00019178,30]
[403628787,1769431360352,1476.24,0.00021,30]
[403628828,1769431832164,-270.86838916,0.00011672,2]
[403628829,1769431832173,-237.36510389,0.00011716,2]
[403628830,1769431832182,-150.0,0.00011772,2]
[403628831,1769431832192,-1200.0,0.00011772,2]
[403628832,1769431832201,-300.0,0.00011772,2]
[403628833,1769431832210,-500.0,0.00011773,2]
[403628834,1769431832220,-500.0,0.00011773,2]
[403628835,1769431832229,-500.0,0.00011773,2]
[403628836,1769431832239,-201.90623821,0.00011773,2]
[403628837,1769431832251,-298.09376179,0.00011773,2]
[403628838,1769431832260,-500.0,0.00011773,2]
[403628839,1769431832270,-500.0,0.00011773,2]
[403628840,1769431832280,-84.57107883,0.00011773,2]
[403628841,1769431832320,-415.42892117,0.00011773,2]
[403628842,1769431832330,-500.78517353,0.00011773,2]
[403628843,1769431832339,-502.78879497,0.00011773,2]
[403628844,1769431832348,-500.0,0.00011773,2]
[403628845,1769431832357,-243.61309146,0.00011773,2]
[403628846,1769431832367,-256.38690854,0.00011773,2]
[403628847,1769431832376,-157.93572848,0.00011773,2]
[403628848,1769431832385,-500.0,0.00011773,2]
[403628849,1769431832394,-500.0,0.00011773,2]
[403628850,1769431832402,-450.06106108,0.00011773,2]
[403628851,1769431832413,-49.93893892,0.00011773,2]
[403628852,1769431832426,-500.0,0.00011773,2]
[403628853,1769431832436,-500.0,0.00011773,2]
[403628854,1769431832445,-195.6484318,0.00011773,2]
[403628855,1769431837586,-250.0,0.00011773,2]
[403628856,1769431837600,-54.3515682,0.00011773,2]
[403628857,1769431837612,-500.0,0.00011773,2]
[403628858,1769431837624,-21.3984318,0.00011773,2]
[403628859,1769431837637,-478.6015682,0.00011773,2]
[403628860,1769431837648,-500.0,0.00011773,2]
[403628861,1769431837659,-500.0,0.00011773,2]
[403628862,1769431837670,-500.0,0.00011773,2]
[403628864,1769431837682,-53.15948103,0.00011773,2]
[403628865,1769431837695,-433.32489386,0.00011773,2]
[403628866,1769431837709,-13.51562511,0.00011773,2]
[403628867,1769431837720,-500.0,0.00011773,2]
[403628868,1769431837732,-500.0,0.00011773,2]
[403628869,1769431837743,-500.0,0.00011773,2]
[403628870,1769431837754,-344.27510642,0.00011773,2]
[403628871,1769431837765,-500.0,0.00011773,2]
[403628872,1769431837775,-380.5452522,0.00011773,2]
[403628873,1769431837789,-120.53657529,0.00011773,2]
[403628874,1769431837800,-380.46666677,0.00011773,2]
[403628881,1769431838162,-1082.69333323,0.00011773,2]
[403628882,1769431838174,-1463.16,0.00012047,2]
[403628883,1769431838186,-503.07183782,0.00012321,2]
[403628884,1769431838198,-534.24079626,0.00012321,2]
[403628885,1769431838210,-500.0,0.00012321,2]
[403628886,1769431838221,-500.0,0.00012321,2]
[403628887,1769431838232,-500.0,0.00012321,2]
[403628888,1769431838249,-500.0,0.00012321,2]
[403628889,1769431838262,-500.0,0.00012321,2]
[403628890,1769431838276,-500.0,0.00012321,2]
[403628891,1769431838289,-348.0638206,0.00012321,2]
[403628892,1769431838301,-1000.0,0.00012321,2]
[403628893,1769431838314,-1000.0,0.00012321,2]
[403628894,1769431838326,-500.0,0.00012321,2]
[403628895,1769431838339,-500.0,0.00012321,2]
[403628896,1769431838352,-1005.54128488,0.00012321,2]
[403628897,1769431838364,-1463.16,0.00012321,2]
[403628898,1769431838375,-500.0,0.00012447,2]
[403628899,1769431838387,-5897.91,0.00012447,2]
[403628900,1769431838399,-1463.16,0.00012595,2]
[403628902,1769431838411,-150.0,0.0001271,2]
[403628903,1769431838425,-500.0,0.00012721,2]
[403628904,1769431838436,-166.66,0.00012753,2]
[403628905,1769431838448,-1788.11682979,0.00012837,2]
[403628906,1769431838460,-250.0,0.00012839,2]
[403628909,1769431838472,-174.11406264,0.00012839,2]
[403628911,1769431838484,-500.0,0.0001284,2]
[403628913,1769431838496,-255.0,0.00012843,2]
[403628915,1769431838507,-1463.16,0.00012868,2]
[403628917,1769431838519,-500.0,0.00012868,2]
[403628920,1769431838530,-518.6229257,0.00012868,2]
[403628922,1769431838543,-420.0,0.00012926,2]
[403628924,1769431838554,-1680.0,0.00012949,2]
[403628926,1769431838565,-500.0,0.00012995,2]
[403628929,1769431838576,-166.66,0.00013021,2]
[403628931,1769431838587,-179.0,0.00013103,2]
[403628933,1769431838599,-1463.16,0.00013142,2]
[403628935,1769431838610,-593.0,0.00013154,2]
[403628937,1769431838622,-258.0,0.00013154,2]
[403628940,1769431838633,-500.0,0.00013269,2]
[403628942,1769431838644,-166.66,0.0001329,2]
[403628944,1769431838655,-1463.16,0.00013416,2]
[403628946,1769431838667,-500.0,0.00013543,2]
[403628948,1769431838678,-166.66,0.00013558,2]
[403628951,1769431838690,-1463.16,0.0001369,2]
[403628953,1769431838701,-200.0,0.00013699,2]
[403628955,1769431838712,-1688.63,0.00013699,2]
[403628957,1769431838723,-500.0,0.00013817,2]
[403628960,1769431838734,-166.66,0.00013827,2]
[403628962,1769431838745,-509.57470144,0.00013885,2]
[403628964,1769431838755,-1696.69364205,0.00013895,2]
[403629079,1769431839969,-3341.54631403,0.00013895,2]
[403629087,1769431840015,-400.0,0.00013895,2]
[403629089,1769431840027,-2169.58896356,0.00013895,2]
[403629091,1769431840039,-373.38091558,0.00013895,2]
[403629094,1769431840050,-1396.78893979,0.00013895,2]
[403629096,1769431840061,-638.55537377,0.00013895,2]
[403629098,1769431840073,-832.19999971,0.00013895,2]
[403629103,1769431840108,-6939.04105719,0.00013895,2]
[403629105,1769431840117,-500.0,0.00013931,2]
[403629107,1769431840126,-500.0,0.00013931,2]
[403629109,1769431840136,-500.0,0.00013931,2]
[403629111,1769431840146,-327.35234372,0.00013931,2]
[403629114,1769431840158,-172.64765628,0.00013931,2]
[403629117,1769431840167,-500.0,0.00013931,2]
[403629120,1769431840177,-472.46524729,0.00013931,2]
[403629122,1769431840186,-631.38572351,0.00013931,2]
[403629124,1769431840195,-500.0,0.00013933,2]
[403629126,1769431840204,-500.0,0.00013933,2]
[403629128,1769431840213,-500.0,0.00013933,2]
[403629130,1769431840223,-500.0,0.00013933,2]
[403629132,1769431840233,-200.0,0.00013933,2]
[403629134,1769431840242,-500.0,0.00013933,2]
[403629136,1769431840251,-500.0,0.00013933,2]
[403629138,1769431840260,-500.0,0.00013933,2]
[403629140,1769431840270,-500.0,0.00013933,2]
[403629142,1769431840279,-500.0,0.00013933,2]
[403629144,1769431840288,-444.96606947,0.00013933,2]
[403629149,1769431840322,-55.03393053,0.00013933,2]
[403629151,1769431840331,-452.76133548,0.00013933,2]
[403629153,1769431840341,-47.23866452,0.00013933,2]
[403629155,1769431840351,-151.0,0.00013933,2]
[403629157,1769431840360,-151.0,0.00013933,2]
[403629159,1769431840368,-151.0,0.00013933,2]
[403629161,1769431840378,-151.0,0.00013933,2]
[403629163,1769431840387,-151.0,0.00013933,2]
[403629165,1769431840396,-151.0,0.00013933,2]
[403629167,1769431840404,-151.0,0.00013933,2]
[403629169,1769431840414,-151.0,0.00013933,2]
[403629171,1769431840424,-151.0,0.00013933,2]
[403629173,1769431840436,-151.0,0.00013933,2]
[403629175,1769431840447,-151.0,0.00013933,2]
[403629177,1769431840457,-151.0,0.00013933,2]
[403629179,1769431840466,-151.0,0.00013933,2]
[403629181,1769431840477,-151.0,0.00013933,2]
[403629183,1769431840487,-151.0,0.00013933,2]
[403629185,1769431840496,-151.0,0.00013933,2]
[403629187,1769431840506,-151.0,0.00013933,2]
[403629189,1769431840515,-151.0,0.00013933,2]
[403629191,1769431840525,-151.0,0.00013933,2]
[403629193,1769431840534,-288.61790626,0.00013933,2]
[403629195,1769431840545,-209.69024363,0.00013933,2]
[403629197,1769431840554,-500.0,0.00013933,2]
[403629199,1769431840563,-500.0,0.0001394,2]
[403629201,1769431840572,-500.0,0.0001394,2]
[403629203,1769431840581,-500.0,0.0001394,2]
[403629205,1769431840591,-500.0,0.0001394,2]
[403629207,1769431840600,-500.0,0.0001394,2]
[403629209,1769431840610,-500.0,0.0001394,2]
[403629211,1769431840620,-562.88447202,0.0001394,2]
[403629213,1769431840629,-500.0,0.0001394,2]
[403629215,1769431840639,-500.0,0.0001394,2]
[403629217,1769431840648,-538.28845972,0.0001394,2]
[403629219,1769431840658,-214.73360835,0.0001394,2]
[403629221,1769431840667,-181419.99935879,0.00013941,2]
[403629223,1769431840678,-40208.43170259,0.00013941,2]
[403629226,1769431840690,-1542.12434419,0.00013941,2]
[403629231,1769431840735,-684.78175077,0.00013941,2]
[403629233,1769431840746,-1423.99481257,0.00013941,2]
[403629291,1769431841269,-2339.14044305,0.00013941,2]
[403629293,1769431841280,-137047.41758804,0.00013941,2]
[403629295,1769431841289,-1463.16,0.00013964,2]
[403629297,1769431841299,-11680.82954711,0.00013995,2]
[403629299,1769431841308,-433.0,0.00014008,2]
[403629301,1769431841317,-500.0,0.00014091,2]
[403629303,1769431841326,-166.66,0.00014095,2]
[403629305,1769431841335,-2959.25,0.00014178,2]
[403629307,1769431841345,-587.0,0.00014193,2]
[403629309,1769431841354,-1463.16,0.00014238,2]
[403629311,1769431841363,-2351.0,0.00014244,2]
[403629314,1769431841373,-17787.79520565,0.0001434,2]
[403629315,1769431841382,-175.88968765,0.00014365,2]
[403629317,1769431841391,-1688.63,0.00014384,2]
[403629319,1769431841400,-11680.82954706,0.00014429,2]
[403629321,1769431841410,-1463.16,0.00014512,2]
[403629323,1769431841419,-151.0,0.00014578,2]
[403629325,1769431841428,-151.0,0.00014608,2]
[403629327,1769431841439,-151.21,0.00014608,2]
[403629329,1769431841449,-151.0,0.00014611,2]
[403629331,1769431841458,-151.0,0.00014611,2]
[403629333,1769431841467,-17787.79520565,0.00014785,2]
[403629335,1769431841476,-1463.16834551,0.00014786,2]
[403629337,1769431841485,-500.0,0.00014794,2]
[403629339,1769431841495,-500.0,0.00014794,2]
[403629341,1769431841504,-500.0,0.00014794,2]
[403629343,1769431841513,-500.0,0.00014794,2]
[403629345,1769431841523,-500.0,0.00014794,2]
[403629347,1769431841532,-500.0,0.00014794,2]
[403629349,1769431841542,-151.0,0.00014853,2]
[403629351,1769431841551,-151.0,0.00014853,2]
[403629353,1769431841560,-11680.82954706,0.00014863,2]
[403629355,1769431841570,-154.97163939,0.000149,2]
[403629357,1769431841580,-154.97163938,0.000149,2]
[403629359,1769431841591,-479.09,0.00014928,2]
[403629361,1769431841600,-1688.63,0.00015068,2]
[403629363,1769431841610,-923.22863654,0.00015108,2]
[403629365,1769431841619,-575.87084629,0.00015114,2]
[403629367,1769431841628,-657.4809881,0.00015114,2]
[403629369,1769431841638,-4452.11126489,0.00015124,2]
[403629370,1769431841647,-1135.16674728,0.00015207,5]
[403629372,1769431841656,-500.0,0.00015207,2]
[403629374,1769431841666,-500.0,0.00015207,2]
[403629377,1769431841676,-500.0,0.00015207,2]
[403629378,1769431841685,-500.0,0.00015207,2]
[403629381,1769431841695,-500.0,0.00015207,2]
[403629382,1769431841705,-500.0,0.00015207,2]
[403629384,1769431841714,-500.66687926,0.00015207,2]
[403629386,1769431841724,-500.0,0.00015207,2]
[403629389,1769431841737,-500.0,0.00015207,2]
[403629390,1769431841746,-500.0,0.00015207,2]
[403629392,1769431841755,-500.0,0.00015207,2]
[403629395,1769431841765,-500.0,0.00015207,2]
[403629397,1769431841774,-500.0,0.00015207,2]
[403629399,1769431841784,-554.41535433,0.00015207,2]
[403629401,1769431841793,-500.0,0.00015207,2]
[403629403,1769431841802,-500.0,0.00015207,2]
[403629405,1769431841811,-500.0,0.00015207,2]
[403629407,1769431841821,-628.83807306,0.00015207,2]
[403629409,1769431841830,-500.0,0.00015207,2]
[403629411,1769431841840,-500.0,0.00015207,2]
[403629413,1769431841849,-500.0,0.00015207,2]
[403629415,1769431841858,-500.0,0.00015207,2]
[403629417,1769431841867,-500.0,0.00015207,2]
[403629419,1769431841876,-646.91101847,0.00015207,2]
[403629421,1769431841885,-500.0,0.00015207,2]
[403629423,1769431841895,-500.0,0.00015207,2]
[403629425,1769431841904,-500.0,0.00015207,2]
[403629427,1769431841912,-500.0,0.00015207,2]
[403629429,1769431841921,-500.0,0.00015207,2]
[403629431,1769431841930,-500.0,0.00015207,2]
[403629433,1769431841941,-500.0,0.00015207,2]
[403629435,1769431841951,-150.0,0.00015207,2]
[403629437,1769431841960,-502.40156004,0.00015214,2]
[403629439,1769431841969,-500.0,0.00015214,2]